[Event "FIDE World Rapid-ch Open 2018"]
[White "Morozevich, Alexander"]
[Black "Firouzja, Alireza"]
[Site "St. Petersburg"]
[Round "3.15"]
[Annotator "ChessBase"]
[Result "1/2-1/2"]
[Date "2018.12.26"]
[WhiteElo "2656"]
[BlackElo "2607"]
[PlyCount "82"]
[TimeControl "900+10"]

1. e4 {[%emt 0:0:0]} c5 {[%emt 0:0:1]} 2. Nf3 {[%emt 0:0:0]} Nc6 3. d4 cxd4 {[%emt 0:0:26]} 4. Nxd4 {[%emt 0:0:0]} Nf6 {[%emt 0:0:28]} 5. Nc3 {[%emt 0:0:0]
} d6 {[%emt 0:0:12]} 6. Bc4 {[%emt 0:0:0]} e6 {[%emt 0:0:22]} 7. Be3 {[%emt 0:0:3]} a6 {[%emt 0:0:26]} 8. Bb3 {[%emt 0:0:4]} Na5 {[%emt 0:0:42]
} 9. f4 {[%emt 0:0:6]} Qc7 {[%emt 0:0:34]} 10. g4 {[%emt 0:0:0]} Nc4 {[%emt 0:3:15]} 11. Qe2 {[%emt 0:3:26]} Nxb2 {[%emt 0:2:40]} 12. Bd2 {[%emt 0:0:1]} Qc5 {[%emt 0:0:33]} 13. Nf5 {[%emt 0:3:16]} exf5 {[%emt 0:2:21]
} 14. exf5+ {[%emt 0:0:13]} Be7 {[%emt 0:0:26]} 15. Rb1 {[%emt 0:0:18]
} 0-0 {[%emt 0:0:38]} 16. Rxb2 {[%emt 0:0:8]} Re8 {[%emt 0:0:0]} 17. Kd1 {[%emt 0:0:28]} Bf8 {[%emt 0:0:18]} 18. Qc4 {[%emt 0:1:33]} Qxc4 {[%emt 0:0:18]} 19. Bxc4 {[%emt 0:0:1]} Nxg4 {[%emt 0:0:11]} 20. Rg1 {[%emt 0:0:1]
} Bxf5 {[%emt 0:0:43]} 21. Rxb7 {[%emt 0:0:6]} Re7 {[%emt 0:0:0]} 22. Rxe7 {[%emt 0:0:17]} Bxe7 {[%emt 0:0:1]} 23. Nd5 {[%emt 0:0:1]
} Bh4 {[%emt 0:0:13]} 24. Be1 {[%emt 0:1:13]} Bd8 {[%emt 0:1:42]} 25. h3 {[%emt 0:0:40]
} Nf6 {[%emt 0:0:5]} 26. Bc3 {[%emt 0:0:6]} Kf8 {[%emt 0:0:0]} 27. Nxf6 {[%emt 0:2:17]} Bxf6 {[%emt 0:0:6]} 28. Bxf6 {[%emt 0:0:1]} gxf6 {[%emt 0:0:2]} 29. Rg3 {[%emt 0:0:1]} Rc8 {[%emt 0:0:44]} 30. Bb3 {[%emt 0:0:24]
} Be4 {[%emt 0:0:40]} 31. Kd2 {[%emt 0:0:5]} Rc5 {[%emt 0:0:0]} 32. Re3 {[%emt 0:0:17]} Bf5 {[%emt 0:0:8]} 33. h4 {[%emt 0:0:34]} Bd7 {[%emt 0:0:6]} 34. Rc3 {[%emt 0:0:26]} Be6 {[%emt 0:0:22]} 35. Rxc5 {[%emt 0:1:45]
} dxc5 {[%emt 0:0:1]} 36. Kc3 {[%emt 0:0:20]} Ke7 37. Bc4 a5 {[%emt 0:1:9]
} 38. a3 {[%emt 0:0:20]} Kd6 {[%emt 0:0:7]} 39. Be2 {[%emt 0:0:0]} h6 {[%emt 0:0:6]} 40. Bf3 {[%emt 0:0:10]} Bd5 {[%emt 0:0:5]} 41. Be2 {[%emt 0:0:10]} Be6 {[%emt 0:0:22]} 1/2-1/2

[Event "FIDE World Rapid-ch Open 2018"]
[White "Kevlishvili, Robby"]
[Black "Matlakov, Maxim"]
[Site "St. Petersburg"]
[Round "3.16"]
[Annotator "ChessBase"]
[Result "1/2-1/2"]
[Date "2018.12.26"]
[WhiteElo "2451"]
[BlackElo "2700"]
[PlyCount "94"]
[TimeControl "900+10"]

1. e4 {[%emt 0:0:0]} e5 {[%emt 0:0:0]} 2. Nf3 {[%emt 0:0:0]} Nc6 {[%emt 0:0:0]
} 3. Bb5 {[%emt 0:0:0]} a6 {[%emt 0:0:0]} 4. Ba4 {[%emt 0:0:0]} Nf6 {[%emt 0:0:0]} 5. 0-0 {[%emt 0:0:1]} Nxe4 {[%emt 0:0:0]} 6. d4 {[%emt 0:0:2]
} b5 {[%emt 0:0:0]} 7. Bb3 {[%emt 0:0:1]} d5 {[%emt 0:0:0]} 8. dxe5 {[%emt 0:0:4]} Be6 {[%emt 0:0:0]} 9. Be3 {[%emt 0:0:10]} Be7 {[%emt 0:0:8]
} 10. c3 {[%emt 0:0:7]} 0-0 {[%emt 0:0:5]} 11. h3 {[%emt 0:0:0]} Qd7 {[%emt 0:1:16]} 12. Nbd2 {[%emt 0:0:34]} Nxd2 {[%emt 0:0:45]} 13. Qxd2 {[%emt 0:0:14]} Na5 {[%emt 0:0:1]} 14. Rad1 {[%emt 0:2:26]} Rad8 {[%emt 0:1:47]
} 15. Bc2 {[%emt 0:1:54]} Nc4 {[%emt 0:0:11]} 16. Qc1 {[%emt 0:0:0]} Nxe3 {[%emt 0:0:44]} 17. Qxe3 {[%emt 0:0:2]} c5 {[%emt 0:0:3]} 18. Ng5 {[%emt 0:1:17]} Bxg5 {[%emt 0:1:32]} 19. Qxg5 {[%emt 0:0:3]} d4 {[%emt 0:0:2]
} 20. cxd4 {[%emt 0:0:27]} cxd4 {[%emt 0:0:1]} 21. Rd2 {[%emt 0:0:24]
} Qc7 {[%emt 0:1:29]} 22. Rfd1 {[%emt 0:1:19]} h6 {[%emt 0:0:0]} 23. Qg3 {[%emt 0:1:34]} d3 {[%emt 0:2:31]} 24. Rxd3 {[%emt 0:0:13]} Bxa2 {[%emt 0:0:44]} 25. Rxd8 {[%emt 0:0:31]} Rxd8 {[%emt 0:0:1]} 26. Rxd8+ {[%emt 0:0:10]} Qxd8 {[%emt 0:0:2]} 27. Qa3 {[%emt 0:0:11]} Qd2 {[%emt 0:0:0]} 28. Qxa2 {[%emt 0:0:3]} Qxc2 {[%emt 0:0:23]} 29. Qxa6 {[%emt 0:0:0]} Qc1+ {[%emt 0:0:5]} 30. Kh2 {[%emt 0:0:2]} Qf4+ {[%emt 0:0:2]} 31. Kg1 {[%emt 0:0:2]} Qc1+ {[%emt 0:0:8]} 32. Kh2 {[%emt 0:0:2]} Qf4+ {[%emt 0:0:2]
} 33. Kg1 {[%emt 0:0:2]} Qxe5 {[%emt 0:0:5]} 34. Qc8+ {[%emt 0:0:6]
} Kh7 {[%emt 0:0:1]} 35. Qc2+ {[%emt 0:0:2]} g6 {[%emt 0:0:0]} 36. g3 {[%emt 0:0:16]} Kg7 {[%emt 0:0:3]} 37. h4 {[%emt 0:0:5]} h5 {[%emt 0:0:2]
} 38. Kg2 {[%emt 0:0:9]} Qd4 {[%emt 0:0:10]} 39. Qe2 {[%emt 0:0:0]} b4 {[%emt 0:0:4]} 40. Qc2 {[%emt 0:0:7]} Qd5+ {[%emt 0:0:3]} 41. Kf1 {[%emt 0:0:11]} Kf6 {[%emt 0:0:16]} 42. Ke2 {[%emt 0:0:6]} Qe5+ {[%emt 0:0:23]
} 43. Kf1 {[%emt 0:0:25]} Qd4 {[%emt 0:0:16]} 44. Ke2 {[%emt 0:0:0]} Qe5+ {[%emt 0:0:13]} 45. Kf1 {[%emt 0:0:4]} Kg7 {[%emt 0:0:10]} 46. Kg2 {[%emt 0:0:8]} Qd4 {[%emt 0:0:49]} 47. Kf1 {[%emt 0:0:5]} Qd5 {[%emt 0:0:33]
} 1/2-1/2

[Event "FIDE World Rapid-ch Open 2018"]
[White "Steinberg, Nitzan"]
[Black "Korobov, Anton"]
[Site "St. Petersburg"]
[Round "3.17"]
[Annotator "ChessBase"]
[Result "0-1"]
[Date "2018.12.26"]
[WhiteElo "2532"]
[BlackElo "2698"]
[PlyCount "79"]
[TimeControl "900+10"]

1. e4 {[%emt 0:0:0]} c5 {[%emt 0:0:0]} 2. Nf3 {[%emt 0:0:0]} d6 {[%emt 0:0:0]} 3. d4 {[%emt 0:0:0]} cxd4 {[%emt 0:0:0]} 4. Nxd4 {[%emt 0:0:0]} Nf6 {[%emt 0:0:0]} 5. Nc3 {[%emt 0:0:0]} a6 {[%emt 0:0:0]} 6. h4 {[%emt 0:0:2]
} Nc6 {[%emt 0:0:8]} 7. Be3 {[%emt 0:0:2]} Ng4 {[%emt 0:0:0]} 8. Nxc6 {[%emt 0:0:2]} bxc6 {[%emt 0:0:2]} 9. Bd2 {[%emt 0:0:1]} Rb8 {[%emt 0:0:55]} 10. b3 {[%emt 0:0:51]} Nf6 {[%emt 0:0:53]} 11. Bd3 {[%emt 0:0:0]} Nd7 {[%emt 0:2:11]} 12. Qe2 {[%emt 0:0:58]} Nc5 {[%emt 0:0:5]} 13. Bc4 {[%emt 0:0:15]} e6 {[%emt 0:0:2]} 14. 0-0-0 {[%emt 0:0:42]} Be7 {[%emt 0:0:4]
} 15. Bf4 {[%emt 0:0:35]} Qa5 {[%emt 0:1:19]} 16. Qd2 {[%emt 0:0:0]} e5 {[%emt 0:1:1]} 17. Bg5 {[%emt 0:0:16]} f6 {[%emt 0:0:15]} 18. Be3 {[%emt 0:0:2]} Rb4 {[%emt 0:0:3]} 19. Bxc5 {[%emt 0:2:5]} Qxc5 {[%emt 0:0:7]
} 20. Qd3 {[%emt 0:0:46]} Qxf2 {[%emt 0:1:30]} 21. h5 {[%emt 0:0:0]} a5 {[%emt 0:0:38]} 22. Kb1 {[%emt 0:0:49]} Bd7 {[%emt 0:1:2]} 23. Rd2 {[%emt 0:0:54]} Qa7 {[%emt 0:0:35]} 24. a3 {[%emt 0:0:42]} Rb8 {[%emt 0:0:0]} 25. Qg3 {[%emt 0:0:4]} Kf8 {[%emt 0:0:27]} 26. h6 {[%emt 0:0:27]} g6 {[%emt 0:0:4]} 27. Rf1 {[%emt 0:0:5]} Ke8 {[%emt 0:0:10]} 28. Ka2 {[%emt 0:0:57]
} Rf8 {[%emt 0:0:15]} 29. Rfd1 {[%emt 0:0:40]} Qc7 {[%emt 0:0:0]} 30. Qe3 {[%emt 0:1:42]} f5 {[%emt 0:0:35]} 31. g3 {[%emt 0:0:34]} f4 {[%emt 0:1:0]
} 32. gxf4 {[%emt 0:0:4]} Rxf4 {[%emt 0:0:2]} 33. Rg1 {[%emt 0:0:25]
} Qb6 {[%emt 0:0:44]} 34. Qe1 {[%emt 0:0:9]} Kd8 {[%emt 0:0:0]} 35. Bg8 {[%emt 0:0:16]} Kc7 {[%emt 0:0:30]} 36. Bxh7 {[%emt 0:0:2]} Be6 {[%emt 0:0:7]} 37. Qd1 {[%emt 0:0:35]} Rf2 {[%emt 0:1:16]} 38. Rxg6 {[%emt 0:1:28]
} Bxb3+ {[%emt 0:0:9]} 39. cxb3 {[%emt 0:1:36]} Qxb3+ {[%emt 0:0:2]
} 40. Ka1 0-1

[Event "FIDE World Rapid-ch Open 2018"]
[White "Karjakin, Sergey"]
[Black "Demchenko, Anton"]
[Site "St. Petersburg"]
[Round "3.18"]
[Annotator "ChessBase"]
[Result "1-0"]
[Date "2018.12.26"]
[WhiteElo "2753"]
[BlackElo "2679"]
[PlyCount "87"]
[TimeControl "900+10"]

1. e4 {[%emt 0:0:0]} e5 {[%emt 0:0:0]} 2. Nf3 {[%emt 0:0:0]} Nc6 {[%emt 0:0:0]
} 3. Bc4 {[%emt 0:0:5]} Nf6 {[%emt 0:0:0]} 4. d3 {[%emt 0:0:0]} Be7 {[%emt 0:0:0]} 5. 0-0 {[%emt 0:0:4]} 0-0 {[%emt 0:0:0]} 6. a3 {[%emt 0:0:10]
} d6 {[%emt 0:0:0]} 7. Nc3 {[%emt 0:0:2]} Bg4 {[%emt 0:0:21]
} 8. h3 {[%emt 0:0:6]} Bh5 {[%emt 0:0:1]} 9. Nd5 {[%emt 0:0:33]} Nxd5 {[%emt 0:3:32]
} 10. Bxd5 {[%emt 0:0:1]} Bxf3 {[%emt 0:2:31]} 11. Qxf3 {[%emt 0:0:2]
} Nd4 {[%emt 0:0:33]} 12. Qd1 {[%emt 0:0:9]} c6 {[%emt 0:0:0]} 13. Ba2 {[%emt 0:0:2]} Bg5 {[%emt 0:0:4]} 14. c3 {[%emt 0:0:28]} Bxc1 {[%emt 0:0:10]} 15. Rxc1 {[%emt 0:0:3]} Ne6 {[%emt 0:0:3]} 16. g3 {[%emt 0:1:44]
} Qe7 {[%emt 0:2:53]} 17. Qg4 {[%emt 0:1:34]} g6 {[%emt 0:0:0]} 18. Rce1 {[%emt 0:1:22]} h5 {[%emt 0:0:55]} 19. Qd1 {[%emt 0:0:8]} Kg7 {[%emt 0:0:49]} 20. h4 {[%emt 0:2:29]} Rad8 {[%emt 0:0:29]} 21. Kg2 {[%emt 0:1:21]
} a5 {[%emt 0:2:19]} 22. Re3 {[%emt 0:0:29]} b5 {[%emt 0:0:31]
} 23. Qe1 {[%emt 0:0:59]} g5 {[%emt 0:1:15]} 24. Qd1 {[%emt 0:1:47]} Rh8 {[%emt 0:0:5]
} 25. Rh1 {[%emt 0:0:11]} Rh6 {[%emt 0:0:14]} 26. Bxe6 {[%emt 0:2:7]
} fxe6 {[%emt 0:0:7]} 27. d4 {[%emt 0:0:1]} exd4 {[%emt 0:0:0]} 28. hxg5 {[%emt 0:0:12]} Qxg5 {[%emt 0:0:13]} 29. Qxd4+ {[%emt 0:0:1]} e5 {[%emt 0:0:7]} 30. Qa7+ {[%emt 0:0:7]} Kg8 {[%emt 0:0:18]} 31. Rf3 {[%emt 0:0:52]
} Qg6 {[%emt 0:0:3]} 32. Rh4 {[%emt 0:0:10]} d5 {[%emt 0:0:0]} 33. Qxa5 {[%emt 0:0:11]} Qd6 {[%emt 0:0:6]} 34. Rf5 {[%emt 0:0:17]} d4 {[%emt 0:0:10]} 35. cxd4 {[%emt 0:0:26]} exd4 {[%emt 0:0:6]} 36. Qd2 {[%emt 0:0:21]
} Re8 {[%emt 0:0:19]} 37. Rfxh5 {[%emt 0:0:26]} Rxh5 {[%emt 0:0:0]} 38. Rxh5 {[%emt 0:0:1]} Qf6 {[%emt 0:0:17]} 39. Rf5 {[%emt 0:0:16]} Qe7 {[%emt 0:0:10]} 40. Qxd4 {[%emt 0:0:22]} Qxe4+ {[%emt 0:0:3]} 41. Qxe4 {[%emt 0:0:1]} Rxe4 {[%emt 0:0:1]} 42. Rc5 {[%emt 0:0:2]} Re2 {[%emt 0:0:0]} 43. Rxc6 {[%emt 0:0:5]} Rxb2 {[%emt 0:0:1]} 44. Ra6 {[%emt 0:0:5]
} 1-0

[Event "FIDE World Rapid-ch Open 2018"]
[White "Salgado Lopez, Ivan"]
[Black "Mamedov, Rauf"]
[Site "St. Petersburg"]
[Round "3.21"]
[Annotator "ChessBase"]
[Result "1/2-1/2"]
[Date "2018.12.26"]
[WhiteElo "2629"]
[BlackElo "2703"]
[PlyCount "25"]
[TimeControl "900+10"]

1. e4 {[%emt 0:0:0]} c5 {[%emt 0:0:0]} 2. c3 {[%emt 0:0:0]} Nf6 {[%emt 0:0:0]} 3. e5 {[%emt 0:0:0]} Nd5 {[%emt 0:0:0]} 4. Bc4 {[%emt 0:0:0]} Nb6 {[%emt 0:0:0]} 5. Bb3 {[%emt 0:0:0]} Nc6 {[%emt 0:0:0]} 6. Nf3 {[%emt 0:0:0]} d5 {[%emt 0:0:0]} 7. exd6 {[%emt 0:0:4]} Qxd6 {[%emt 0:0:0]} 8. Na3 {[%emt 0:0:4]} Be6 {[%emt 0:0:1]} 9. 0-0 {[%emt 0:1:7]} Bxb3 {[%emt 0:0:26]
} 10. Qxb3 {[%emt 0:0:5]} e6 {[%emt 0:1:26]} 11. d4 {[%emt 0:0:0]} cxd4 {[%emt 0:0:7]} 12. Nb5 {[%emt 0:0:2]} Qd7 {[%emt 0:0:8]} 13. Nbxd4 {[%emt 0:0:28]} 1/2-1/2

[Event "FIDE World Rapid-ch Open 2018"]
[White "Tomashevsky, Evgeny"]
[Black "Shaposhnikov, Evgeny"]
[Site "St. Petersburg"]
[Round "3.22"]
[Annotator "ChessBase"]
[Result "1/2-1/2"]
[Date "2018.12.26"]
[WhiteElo "2705"]
[BlackElo "2576"]
[PlyCount "54"]
[TimeControl "900+10"]

1. Nf3 {[%emt 0:0:0]} c5 {[%emt 0:0:0]} 2. c4 {[%emt 0:0:0]} Nc6 {[%emt 0:0:5]
} 3. Nc3 {[%emt 0:0:0]} Nd4 {[%emt 0:0:6]} 4. e3 {[%emt 0:0:0]} Nxf3+ {[%emt 0:0:3]} 5. Qxf3 {[%emt 0:0:1]} g6 {[%emt 0:0:11]} 6. b3 {[%emt 0:0:9]} Bg7 {[%emt 0:0:3]} 7. Bb2 {[%emt 0:0:1]} Rb8 {[%emt 0:0:0]} 8. Be2 {[%emt 0:3:56]} d6 {[%emt 0:1:1]} 9. 0-0 {[%emt 0:3:4]} Nh6 {[%emt 0:0:11]
} 10. Qe4 {[%emt 0:0:8]} 0-0 {[%emt 0:0:29]} 11. Rfd1 {[%emt 0:0:3]
} Bf5 {[%emt 0:0:42]} 12. Qh4 {[%emt 0:0:18]} Bd7 {[%emt 0:0:0]} 13. d4 {[%emt 0:0:21]} Nf5 {[%emt 0:0:12]} 14. Qe4 {[%emt 0:0:6]} cxd4 {[%emt 0:0:54]} 15. exd4 {[%emt 0:0:1]} e6 {[%emt 0:0:20]} 16. Rd2 {[%emt 0:2:11]
} Re8 {[%emt 0:0:22]} 17. Rad1 {[%emt 0:0:54]} Bc6 {[%emt 0:0:0]} 18. Qg4 {[%emt 0:0:9]} h5 {[%emt 0:0:35]} 19. Qh3 {[%emt 0:0:16]} d5 {[%emt 0:2:12]
} 20. Bd3 {[%emt 0:2:30]} Nxd4 {[%emt 0:0:58]} 21. Bxg6 {[%emt 0:0:34]
} fxg6 {[%emt 0:0:10]} 22. Rxd4 {[%emt 0:0:1]} Bxd4 {[%emt 0:0:0]} 23. Rxd4 {[%emt 0:0:3]} Qf6 {[%emt 0:0:54]} 24. Qe3 {[%emt 0:2:45]} Rbd8 {[%emt 0:0:18]} 25. h3 {[%emt 0:0:2]} dxc4 {[%emt 0:2:16]} 26. Rxc4 {[%emt 0:0:4]
} e5 {[%emt 0:0:39]} 27. Ne4 {[%emt 0:0:21]} Qf5 {[%emt 0:0:0]} 1/2-1/2

[Event "FIDE World Rapid-ch Open 2018"]
[White "Iljiushenok, Ilia"]
[Black "Jakovenko, Dmitry"]
[Site "St. Petersburg"]
[Round "3.23"]
[Annotator "RC"]
[Result "0-1"]
[Date "2018.12.26"]
[WhiteElo "2533"]
[BlackElo "2735"]
[PlyCount "84"]
[TimeControl "900+10"]

1. e4 {[%emt 0:0:0]} e5 {[%emt 0:0:0]} 2. Nf3 {[%emt 0:0:0]} Nc6 {[%emt 0:0:0]
} 3. d4 {[%emt 0:0:0]} exd4 {[%emt 0:0:0]} 4. Nxd4 {[%emt 0:0:0]} Nf6 {[%emt 0:0:0]} 5. Nxc6 {[%emt 0:0:0]} bxc6 {[%emt 0:0:0]} 6. e5 {[%emt 0:0:1]} Qe7 {[%emt 0:0:1]} 7. Qe2 {[%emt 0:0:1]} Nd5 {[%emt 0:0:0]} 8. c4 {[%emt 0:0:2]} Ba6 {[%emt 0:0:5]} 9. b3 {[%emt 0:0:2]} g6 {[%emt 0:0:4]
} 10. f4 {[%emt 0:0:7]} g5 {[%emt 0:0:2]} 11. fxg5 {[%emt 0:0:0]} h6 {[%emt 0:0:27]} 12. Nd2 {[%emt 0:0:58]} hxg5 {[%emt 0:0:43]} 13. Bb2 {[%emt 0:1:25]} Bg7 {[%emt 0:0:37]} 14. 0-0-0 {[%emt 0:0:3]} Nf4 {[%emt 0:0:21]
} 15. Qe3 {[%emt 0:3:8]} f6 {[%emt 0:3:32]} 16. Re1 {[%emt 0:0:0]} fxe5 {[%emt 0:0:20]} 17. g3 {[%emt 0:0:38]} Ne6 {[%emt 0:0:20]} 18. Bxe5 {[%emt 0:0:18]} Bxe5 {[%emt 0:1:20]} 19. Qxe5 {[%emt 0:0:2]} 0-0-0 {[%emt 0:0:3]
} 20. Qa5 {[%emt 0:0:36]} Bb7 {[%emt 0:0:18]} 21. Bd3 {[%emt 0:0:0]} Rdf8 {[%emt 0:2:46]} 22. Bf5 {[%emt 0:1:28]} c5 {[%emt 0:0:15]} 23. Be4 {[%emt 0:0:34]} Rf2 {[%emt 0:1:30]} 24. Qxa7 {[%emt 0:1:19]} c6 {[%emt 0:0:1]
} 25. Qa5 {[%emt 0:0:34]} Qf6 {[%emt 0:0:24]} 26. h3 {[%emt 0:0:0]} Qa1+ {[%emt 0:0:19]} 27. Kc2 {[%emt 0:0:32]} Nd4+ {[%emt 0:0:40]} 28. Kd3 {[%emt 0:0:1]} Qb2 {[%emt 0:0:1]} 29. Qc3 {[%emt 0:0:1]} Qxc3+ {[%emt 0:0:26]
} 30. Kxc3 {[%emt 0:0:1]} Ne2+ {[%emt 0:0:2]} 31. Rxe2 {[%emt 0:0:30]
} Rxe2 {[%emt 0:0:1]} 32. Kd3 {[%emt 0:0:1]} Rf2 {[%emt 0:0:0]} 33. Bf3 {[%emt 0:0:0]} Re8 {[%emt 0:0:32]} 34. h4 {[%emt 0:0:10]} Re6 {[%emt 0:0:41]} 35. Rd1 {[%emt 0:0:38]} gxh4 {[%emt 0:0:11]} 36. gxh4 {[%emt 0:0:1]
} Kc7 {[%emt 0:0:7]} 37. h5 {[%emt 0:0:2]} d5 {[%emt 0:0:17]
} 38. Bg4 {[%emt 0:0:24]} Ref6 {[%emt 0:0:11]} 39. Rh1 {[%emt 0:0:4]} R6f4 {[%emt 0:1:31]} 40. h6 {[%emt 0:0:11]} Rxg4 {[%emt 0:0:19]} 41. h7 {[%emt 0:0:0]} Rd4+ {[%emt 0:0:10]} 42. Ke3 {[%emt 0:0:8]} Rdxd2 {[%emt 0:0:4]
Kd4} 0-1

[Event "FIDE World Rapid-ch Open 2018"]
[White "Postny, Evgeny"]
[Black "Jobava, Baadur"]
[Site "St. Petersburg"]
[Round "3.25"]
[Annotator "ChessBase"]
[Result "1-0"]
[Date "2018.12.26"]
[WhiteElo "2615"]
[BlackElo "2627"]
[PlyCount "125"]
[TimeControl "900+10"]

1. d4 {[%emt 0:0:0]} Nf6 {[%emt 0:0:0]} 2. c4 {[%emt 0:0:0]} e6 {[%emt 0:0:0]} 3. Nf3 {[%emt 0:0:0]} Bb4+ {[%emt 0:0:0]} 4. Bd2 {[%emt 0:0:0]} Bxd2+ {[%emt 0:0:0]} 5. Qxd2 {[%emt 0:0:2]} d5 {[%emt 0:0:0]} 6. e3 {[%emt 0:0:19]
} 0-0 {[%emt 0:0:0]} 7. Nc3 {[%emt 0:0:1]} Qe7 {[%emt 0:0:0]} 8. a3 {[%emt 0:0:45]} Rd8 {[%emt 0:0:6]} 9. cxd5 {[%emt 0:0:3]} exd5 {[%emt 0:0:1]} 10. Bd3 {[%emt 0:0:5]} Nc6 {[%emt 0:0:3]} 11. h3 {[%emt 0:0:0]} a6 {[%emt 0:2:0]} 12. Qc2 {[%emt 0:0:54]} Na7 {[%emt 0:0:7]} 13. 0-0 {[%emt 0:0:18]} c6 {[%emt 0:0:2]} 14. a4 {[%emt 0:0:47]} a5 {[%emt 0:0:0]} 15. Rfe1 {[%emt 0:0:3]} g6 {[%emt 0:0:26]} 16. e4 {[%emt 0:0:31]} dxe4 {[%emt 0:0:3]} 17. Nxe4 {[%emt 0:0:2]} Nxe4 {[%emt 0:0:7]} 18. Rxe4 {[%emt 0:0:14]} Qf6 {[%emt 0:1:1]} 19. Qd2 {[%emt 0:1:33]} Be6 {[%emt 0:0:0]} 20. Rf4 {[%emt 0:0:29]} Qg7 {[%emt 0:0:29]} 21. Qxa5 {[%emt 0:0:57]} Nb5 {[%emt 0:0:22]} 22. Qb6 {[%emt 0:2:49]} Nd6 {[%emt 0:0:8]} 23. h4 {[%emt 0:1:21]
} h6 {[%emt 0:0:3]} 24. Re1 {[%emt 0:1:5]} Re8 {[%emt 0:0:0]} 25. Qc5 {[%emt 0:0:27]} Rad8 {[%emt 0:0:2]} 26. Qe5 {[%emt 0:1:44]} Bd5 {[%emt 0:0:35]} 27. Qxg7+ {[%emt 0:0:11]} Kxg7 {[%emt 0:0:1]} 28. Re3 {[%emt 0:0:31]
} f6 {[%emt 0:0:59]} 29. Rg4 {[%emt 0:0:36]} f5 {[%emt 0:0:34]
} 30. Rg3 {[%emt 0:0:26]} Be4 {[%emt 0:4:9]} 31. Bxe4 {[%emt 0:2:24]} Nxe4 {[%emt 0:0:2]} 32. Rh3 {[%emt 0:0:1]} Kf6 {[%emt 0:0:11]} 33. Rb3 {[%emt 0:0:4]
} Re7 {[%emt 0:0:1]} 34. Rb4 {[%emt 0:0:24]} Rd6 {[%emt 0:0:0]} 35. g3 {[%emt 0:0:16]} c5 {[%emt 0:0:40]} 36. dxc5 {[%emt 0:0:1]} Nxc5 {[%emt 0:0:1]} 37. g4 {[%emt 0:0:17]} Rd1+ {[%emt 0:0:56]} 38. Kg2 {[%emt 0:0:2]
} Nd3 {[%emt 0:0:1]} 39. Rb6+ {[%emt 0:0:19]} Kg7 {[%emt 0:0:0]} 40. gxf5 {[%emt 0:0:6]} Nf4+ {[%emt 0:0:12]} 41. Kg3 {[%emt 0:0:5]} Nh5+ {[%emt 0:0:59]} 42. Kh2 {[%emt 0:0:6]} gxf5 {[%emt 0:0:3]} 43. Ng1 {[%emt 0:0:29]
} Nf6 {[%emt 0:0:25]} 44. Rg3+ {[%emt 0:0:7]} Ng4+ {[%emt 0:0:0]} 45. Kg2 {[%emt 0:0:4]} Rd2 {[%emt 0:0:31]} 46. Nh3 {[%emt 0:0:7]} Kh7 {[%emt 0:0:5]} 47. Rgb3 {[%emt 0:0:5]} Rdd7 {[%emt 0:0:24]} 48. Nf4 {[%emt 0:0:24]
} Ne5 {[%emt 0:0:7]} 49. Nh5 {[%emt 0:0:7]} Rd4 {[%emt 0:0:0]} 50. Rxb7 {[%emt 0:0:23]} Rxb7 {[%emt 0:0:7]} 51. Rxb7+ {[%emt 0:0:1]} Kg6 {[%emt 0:0:1]} 52. Ng3 {[%emt 0:0:4]} Rxh4 {[%emt 0:0:13]} 53. a5 {[%emt 0:0:9]
} Ra4 {[%emt 0:0:7]} 54. b4 {[%emt 0:0:10]} Nd3 {[%emt 0:0:0]} 55. Rb6+ {[%emt 0:0:13]} Kg5 {[%emt 0:0:3]} 56. Rb5 {[%emt 0:0:3]} Nxb4 {[%emt 0:0:3]} 57. Rxf5+ {[%emt 0:0:1]} Kg6 {[%emt 0:0:10]} 58. Rf4 {[%emt 0:0:2]
} h5 {[%emt 0:0:52]} 59. a6 {[%emt 0:0:4]} Kg5 {[%emt 0:0:0]
} 60. Rc4 {[%emt 0:0:4]} h4 {[%emt 0:0:1]} 61. Ne4+ {[%emt 0:0:2]} Kf5 {[%emt 0:0:10]
} 62. Nc5 {[%emt 0:0:6]} h3+ {[%emt 0:0:5]} 63. Kh2 {[%emt 0:0:0]} 1-0

[Event "FIDE World Rapid-ch Open 2018"]
[White "Demidov, Mikhail"]
[Black "Anton Guijarro, David"]
[Site "St. Petersburg"]
[Round "3.26"]
[Annotator "ChessBase"]
[Result "1/2-1/2"]
[Date "2018.12.26"]
[WhiteElo "2520"]
[BlackElo "2642"]
[PlyCount "73"]
[TimeControl "900+10"]

1. d4 {[%emt 0:0:0]} f5 {[%emt 0:0:0]} 2. g3 {[%emt 0:0:16]} Nf6 {[%emt 0:0:0]} 3. Bg2 {[%emt 0:0:2]} g6 {[%emt 0:0:2]} 4. Nf3 {[%emt 0:0:4]} Bg7 {[%emt 0:0:3]} 5. 0-0 {[%emt 0:0:5]} 0-0 {[%emt 0:0:4]} 6. b4 {[%emt 0:0:0]} c6 {[%emt 0:0:28]} 7. Bb2 {[%emt 0:0:9]} a5 {[%emt 0:0:32]} 8. a3 {[%emt 0:0:22]
} axb4 {[%emt 0:1:6]} 9. axb4 {[%emt 0:0:3]} Rxa1 {[%emt 0:0:0]} 10. Bxa1 {[%emt 0:0:1]} Na6 {[%emt 0:0:15]} 11. c3 {[%emt 0:0:39]} d5 {[%emt 0:0:31]} 12. Nbd2 {[%emt 0:1:53]} Ne4 {[%emt 0:1:17]} 13. e3 {[%emt 0:0:39]
} Be6 {[%emt 0:0:31]} 14. Bb2 {[%emt 0:1:57]} Nc7 {[%emt 0:0:0]} 15. Nb3 {[%emt 0:0:28]} Nb5 {[%emt 0:0:32]} 16. Qc2 {[%emt 0:0:39]} Nbd6 {[%emt 0:1:55]} 17. Nc5 {[%emt 0:0:5]} Bc8 {[%emt 0:1:3]} 18. Nd3 {[%emt 0:0:7]
} Nc4 {[%emt 0:1:4]} 19. Ra1 {[%emt 0:1:0]} g5 {[%emt 0:0:0]} 20. Nfe5 {[%emt 0:2:9]} Ncd6 {[%emt 0:1:35]} 21. Nc4 {[%emt 0:0:10]} Nxc4 {[%emt 0:0:8]} 22. Bc1 {[%emt 0:0:22]} Qc7 {[%emt 0:0:48]} 23. b5 {[%emt 0:0:45]
} e6 {[%emt 0:0:39]} 24. bxc6 Qxc6 {[%emt 0:0:40]} 25. Qb3 {[%emt 0:0:58]
} b6 {[%emt 0:0:10]} 26. Nb4 {[%emt 0:2:29]} Qd7 {[%emt 0:0:0]} 27. Nd3 {[%emt 0:0:20]} Qc7 {[%emt 0:1:29]} 28. Nb2 {[%emt 0:0:57]} Na5 {[%emt 0:0:11]} 29. Qb4 {[%emt 0:0:8]} Bd7 {[%emt 0:1:15]} 30. Bd2 {[%emt 0:0:41]
} Rc8 {[%emt 0:0:43]} 31. Nd3 {[%emt 0:0:56]} Nc4 {[%emt 0:0:0]} 32. Be1 {[%emt 0:0:1]} Bf8 {[%emt 0:0:19]} 33. Qb3 {[%emt 0:0:12]} Bc6 {[%emt 0:0:14]} 34. Nb2 {[%emt 0:0:17]} Na5 {[%emt 0:0:15]} 35. Qd1 {[%emt 0:0:3]
} Bb5 {[%emt 0:0:15]} 36. h3 {[%emt 0:0:32]} Nc4 {[%emt 0:0:0]} 37. Nd3 1/2-1/2

[Event "FIDE World Rapid-ch Open 2018"]
[White "Akopian, Vladimir"]
[Black "Sokolov, Andrei"]
[Site "St. Petersburg"]
[Round "3.27"]
[Annotator "ChessBase"]
[Result "1-0"]
[Date "2018.12.26"]
[WhiteElo "2650"]
[BlackElo "2532"]
[PlyCount "71"]
[TimeControl "900+10"]

1. Nf3 {[%emt 0:0:0]} d6 {[%emt 0:0:3]} 2. e4 {[%emt 0:0:9]} Nf6 {[%emt 0:0:5]
} 3. Nc3 {[%emt 0:0:20]} c6 {[%emt 0:0:15]} 4. d4 {[%emt 0:0:0]} Bg4 {[%emt 0:0:3]} 5. Be2 {[%emt 0:0:30]} e6 {[%emt 0:0:2]} 6. 0-0 {[%emt 0:0:38]
} d5 {[%emt 0:0:29]} 7. e5 {[%emt 0:1:45]} Bxf3 {[%emt 0:1:0]
} 8. exf6 {[%emt 0:0:35]} Bxe2 {[%emt 0:0:2]} 9. fxg7 {[%emt 0:0:6]} Bxg7 {[%emt 0:0:6]} 10. Nxe2 {[%emt 0:0:2]} Nd7 {[%emt 0:1:39]} 11. Nf4 {[%emt 0:0:17]
} Nf6 {[%emt 0:1:6]} 12. Re1 {[%emt 0:0:28]} Qe7 {[%emt 0:0:0]} 13. a4 {[%emt 0:0:26]} 0-0-0 {[%emt 0:1:33]} 14. a5 {[%emt 0:0:6]} a6 {[%emt 0:0:26]} 15. Ra3 {[%emt 0:1:41]} Ne4 {[%emt 0:0:23]} 16. Nh5 {[%emt 0:0:44]
} Rhg8 {[%emt 0:0:29]} 17. Bf4 {[%emt 0:1:12]} Bh8 {[%emt 0:0:0]} 18. Ng3 {[%emt 0:0:10]} Nxg3 {[%emt 0:1:7]} 19. hxg3 {[%emt 0:1:17]} h5 {[%emt 0:0:38]} 20. Qd2 {[%emt 0:1:55]} h4 {[%emt 0:0:28]} 21. Rf3 {[%emt 0:0:4]
} hxg3 {[%emt 0:0:15]} 22. Bxg3 {[%emt 0:0:7]} Rg4 {[%emt 0:0:0]} 23. c3 {[%emt 0:1:11]} Bf6 {[%emt 0:1:0]} 24. Qh6 {[%emt 0:0:25]} Bg7 {[%emt 0:1:30]} 25. Qh5 {[%emt 0:0:39]} Rg6 {[%emt 0:1:21]} 26. Bh4 {[%emt 0:0:4]
} Qd7 {[%emt 0:0:12]} 27. Bxd8 {[%emt 0:0:11]} Kxd8 {[%emt 0:0:0]} 28. Ree3 {[%emt 0:1:36]} Bh6 {[%emt 0:0:25]} 29. Rd3 {[%emt 0:0:7]} Qe7 {[%emt 0:0:14]} 30. Rg3 {[%emt 0:0:4]} Bg5 {[%emt 0:0:15]} 31. Rdf3 {[%emt 0:0:15]
} Ke8 {[%emt 0:0:16]} 32. Qh8+ {[%emt 0:0:11]} Qf8 {[%emt 0:0:0]} 33. Qe5 {[%emt 0:0:10]} Qh6 {[%emt 0:0:4]} 34. Rh3 {[%emt 0:1:3]} Qg7 {[%emt 0:0:12]} 35. Rh8+ {[%emt 0:0:12]} Kd7 {[%emt 0:0:21]} 36. Qb8 {[%emt 0:1:13]
} 1-0